[Event "*** Titled Tuesday Blitz"]
[Site "Chess.com"]
[Date "2020.04.21"]
[Round "4"]
[White "kingofkolkata"]
[Black "KinKaiser"]
[Result "0-1"]
[WhiteElo "2235"]
[BlackElo "2449"]
[TimeControl "180+1"]
[EndTime "10:41:49 PDT"]
[Termination "KinKaiser won by resignation"]

1. d4 {[%clk 0:03:00.9]} 1... d5 {[%clk 0:02:57]} 2. c4 {[%clk 0:03:01]} 2... c6
{[%clk 0:02:57.1]} 3. Nc3 {[%clk 0:02:56.6]} 3... Nf6 {[%clk 0:02:56.1]} 4. e3
{[%clk 0:02:56.8]} 4... g6 {[%clk 0:02:49.8]} 5. Nf3 {[%clk 0:02:55]} 5... Bg7
{[%clk 0:02:49.9]} 6. cxd5 {[%clk 0:02:55.2]} 6... Nxd5 {[%clk 0:02:47.5]} 7. h3
{[%clk 0:02:52.6]} 7... O-O {[%clk 0:02:46.4]} 8. Be2 {[%clk 0:02:52.9]} 8...
Re8 {[%clk 0:02:40.7]} 9. O-O {[%clk 0:02:52.7]} 9... Nxc3 {[%clk 0:02:29.8]}
10. bxc3 {[%clk 0:02:52.7]} 10... e5 {[%clk 0:02:29.1]} 11. dxe5 {[%clk
0:02:49.2]} 11... Nd7 {[%clk 0:02:18.2]} 12. Rb1 {[%clk 0:02:38]} 12... Nxe5
{[%clk 0:02:12.4]} 13. c4 {[%clk 0:02:33.4]} 13... Qc7 {[%clk 0:02:04.1]} 14.
Nxe5 {[%clk 0:02:31.1]} 14... Bxe5 {[%clk 0:02:00.5]} 15. Bb2 {[%clk 0:02:30.7]}
15... Bf5 {[%clk 0:01:38]} 16. Bxe5 {[%clk 0:02:28.2]} 16... Rxe5 {[%clk
0:01:37.7]} 17. Rb2 {[%clk 0:02:27.8]} 17... Rd8 {[%clk 0:01:32.2]} 18. Rd2
{[%clk 0:02:27.4]} 18... Ree8 {[%clk 0:01:31.7]} 19. Qc1 {[%clk 0:02:14.9]}
19... Rxd2 {[%clk 0:01:24]} 20. Qxd2 {[%clk 0:02:15.8]} 20... Rd8 {[%clk
0:01:20.7]} 21. Qc1 {[%clk 0:02:14.8]} 21... Be6 {[%clk 0:01:19]} 22. Rd1 {[%clk
0:02:12.5]} 22... Rxd1+ {[%clk 0:01:18.7]} 23. Qxd1 {[%clk 0:02:13.4]} 23... Qa5
{[%clk 0:01:15.8]} 24. Qb1 {[%clk 0:01:42.2]} 24... b6 {[%clk 0:01:10.8]} 25.
Kh2 {[%clk 0:01:06]} 25... h5 {[%clk 0:01:09]} 26. Qb3 {[%clk 0:00:59.5]} 26...
Qd2 {[%clk 0:01:07.8]} 27. Qd3 {[%clk 0:00:55.8]} 27... Qxa2 {[%clk 0:01:04.8]}
28. Qd8+ {[%clk 0:00:55.6]} 28... Kh7 {[%clk 0:01:04.6]} 29. Qd3 {[%clk
0:00:43]} 29... Kg8 {[%clk 0:00:52.3]} 30. Qd8+ {[%clk 0:00:42.1]} 30... Kg7
{[%clk 0:00:51.3]} 31. Qd4+ {[%clk 0:00:41.7]} 31... Kh7 {[%clk 0:00:51.5]} 32.
Qd3 {[%clk 0:00:40.2]} 32... Qb2 {[%clk 0:00:49.3]} 33. f4 {[%clk 0:00:27.6]}
33... Kg7 {[%clk 0:00:40.3]} 34. Bf3 {[%clk 0:00:27.5]} 34... Qc1 {[%clk
0:00:28.6]} 35. Qd4+ {[%clk 0:00:26.2]} 35... Kh7 {[%clk 0:00:28.5]} 36. Bxc6
{[%clk 0:00:14]} 36... Qxc4 {[%clk 0:00:27.9]} 37. Qd6 {[%clk 0:00:09.2]} 37...
Qc5 {[%clk 0:00:22.6]} 38. Qxc5 {[%clk 0:00:03.9]} 38... bxc5 {[%clk 0:00:23.5]}
39. Kg1 {[%clk 0:00:04.2]} 39... a5 {[%clk 0:00:18.8]} 40. Kf2 {[%clk 0:00:04]}
40... Bb3 {[%clk 0:00:16.8]} 41. Ke1 {[%clk 0:00:03.3]} 41... Kg7 {[%clk
0:00:15.9]} 42. Kd2 {[%clk 0:00:03.4]} 42... a4 {[%clk 0:00:14.9]} 43. Kc3
{[%clk 0:00:02.8]} 43... Kf6 {[%clk 0:00:13.2]} 44. g4 {[%clk 0:00:02.8]} 44...
hxg4 {[%clk 0:00:12.2]} 45. hxg4 {[%clk 0:00:03.7]} 45... Ke6 {[%clk 0:00:12.2]}
46. Be4 {[%clk 0:00:03.2]} 46... Kd6 {[%clk 0:00:10.7]} 47. Bb1 {[%clk 0:00:03]}
47... Kd5 {[%clk 0:00:08.6]} 48. e4+ {[%clk 0:00:02.9]} 48... Kd6 {[%clk
0:00:08.7]} 49. e5+ {[%clk 0:00:03.2]} 49... Ke6 {[%clk 0:00:08.8]} 50. Kd3
{[%clk 0:00:03]} 50... Bd5 {[%clk 0:00:07.8]} 51. Kc3 {[%clk 0:00:03.1]} 51...
a3 {[%clk 0:00:06.8]} 52. Bc2 {[%clk 0:00:01.9]} 52... Ba2 {[%clk 0:00:06.6]}
53. Bb3+ {[%clk 0:00:01.6]} 53... Bxb3 {[%clk 0:00:06.3]} 54. Kxb3 {[%clk
0:00:02.5]} 54... Kd5 {[%clk 0:00:06.9]} 55. Kxa3 {[%clk 0:00:02.8]} 55... Ke4
{[%clk 0:00:07.1]} 56. Kb3 {[%clk 0:00:03.2]} 56... Kxf4 {[%clk 0:00:07.1]} 57.
Kc4 {[%clk 0:00:03.2]} 57... Kxe5 {[%clk 0:00:07.4]} 58. Kxc5 {[%clk 0:00:04.1]}
58... Kf4 {[%clk 0:00:08.3]} 59. Kd4 {[%clk 0:00:04.5]} 59... Kxg4 {[%clk
0:00:08.9]} 60. Ke5 {[%clk 0:00:05.4]} 60... f5 {[%clk 0:00:08.5]} 61. Kf6
{[%clk 0:00:06.3]} 61... f4 {[%clk 0:00:09.1]} 62. Kxg6 {[%clk 0:00:07.2]} 62...
f3 {[%clk 0:00:10]} 63. Kh6 {[%clk 0:00:08.1]} 63... f2 {[%clk 0:00:10.9]} 64.
Kg6 {[%clk 0:00:09]} 64... f1=Q {[%clk 0:00:11.8]} 65. Kh7 {[%clk 0:00:09.1]}
65... Qf5+ {[%clk 0:00:12.7]} 66. Kg8 {[%clk 0:00:09.7]} 66... Qe6+ {[%clk
0:00:13.6]} 67. Kh7 {[%clk 0:00:10.2]} 67... Qd6 {[%clk 0:00:13]} 68. Kg7 {[%clk
0:00:10.2]} 68... Kg5 {[%clk 0:00:13.1]} 69. Kf7 {[%clk 0:00:10.3]} 69... Qf6+
{[%clk 0:00:12.4]} 70. Ke8 {[%clk 0:00:11.2]} 70... Qg7 {[%clk 0:00:12.5]} 71.
Kd8 {[%clk 0:00:11.3]} 71... Kf6 {[%clk 0:00:12.9]} 72. Kc8 {[%clk 0:00:12.2]}
72... Ke6 {[%clk 0:00:13.5]} 73. Kb8 {[%clk 0:00:12.7]} 73... Kd6 {[%clk
0:00:14.2]} 74. Ka8 {[%clk 0:00:13.6]} 74... Kc6 {[%clk 0:00:14.8]} 0-1

[Event "*** Titled Tuesday Blitz"]
[Site "Chess.com"]
[Date "2020.04.21"]
[Round "4"]
[White "Enriquack"]
[Black "noblerone"]
[Result "0-1"]
[WhiteElo "2259"]
[BlackElo "2454"]
[TimeControl "180+1"]
[EndTime "10:41:50 PDT"]
[Termination "noblerone won by resignation"]

1. e4 {[%clk 0:03:00.9]} 1... c5 {[%clk 0:02:59.6]} 2. Nf3 {[%clk 0:03:00.9]}
2... e6 {[%clk 0:02:59.6]} 3. d4 {[%clk 0:03:00.9]} 3... cxd4 {[%clk 0:03:00.5]}
4. Nxd4 {[%clk 0:03:01.8]} 4... Qb6 {[%clk 0:03:00.7]} 5. Nb3 {[%clk 0:02:59.6]}
5... Qc7 {[%clk 0:03:01]} 6. Be3 {[%clk 0:02:40.9]} 6... Nf6 {[%clk 0:02:58.7]}
7. Bd3 {[%clk 0:02:40.5]} 7... a6 {[%clk 0:02:50.1]} 8. N1d2 {[%clk 0:02:32.2]}
8... b5 {[%clk 0:02:37.2]} 9. a4 {[%clk 0:02:31]} 9... bxa4 {[%clk 0:02:25.6]}
10. Rxa4 {[%clk 0:02:29.5]} 10... Bb7 {[%clk 0:02:23.2]} 11. Qf3 {[%clk
0:02:17.3]} 11... Nc6 {[%clk 0:02:17.5]} 12. Qg3 {[%clk 0:02:05.7]} 12... Qxg3
{[%clk 0:02:07.5]} 13. hxg3 {[%clk 0:02:06.6]} 13... Nb4 {[%clk 0:02:06.9]} 14.
Ke2 {[%clk 0:01:55.3]} 14... Nxd3 {[%clk 0:01:52.9]} 15. Kxd3 {[%clk 0:01:45.8]}
15... Bc6 {[%clk 0:01:50.8]} 16. Ra2 {[%clk 0:01:38.8]} 16... d5 {[%clk
0:01:46.6]} 17. e5 {[%clk 0:01:26.5]} 17... Nd7 {[%clk 0:01:45.6]} 18. f4 {[%clk
0:01:24.1]} 18... Bb5+ {[%clk 0:01:41.9]} 19. c4 {[%clk 0:01:10.8]} 19... dxc4+
{[%clk 0:01:39.4]} 20. Nxc4 {[%clk 0:01:10.7]} 20... Rc8 {[%clk 0:01:39.1]} 21.
Rc1 {[%clk 0:01:08.6]} 21... Bb4 {[%clk 0:01:30.7]} 22. Kd4 {[%clk 0:00:46.1]}
22... O-O {[%clk 0:01:17.5]} 23. Nd6 {[%clk 0:00:42.7]} 23... Rxc1 {[%clk
0:01:17]} 24. Bxc1 {[%clk 0:00:40.3]} 24... Bf1 {[%clk 0:00:54.4]} 25. Bd2
{[%clk 0:00:36.6]} 25... Rb8 {[%clk 0:00:38.7]} 26. Bc3 {[%clk 0:00:26.5]} 26...
Bxc3+ {[%clk 0:00:17.6]} 27. Kxc3 {[%clk 0:00:25.6]} 27... Bxg2 {[%clk
0:00:16.5]} 28. Rxa6 {[%clk 0:00:25.5]} 28... Bd5 {[%clk 0:00:17.1]} 29. Nd4
{[%clk 0:00:19.5]} 29... Nc5 {[%clk 0:00:16.9]} 30. Ra3 {[%clk 0:00:19.1]} 30...
h5 {[%clk 0:00:15.1]} 31. b4 {[%clk 0:00:19.2]} 31... Ne4+ {[%clk 0:00:14.5]}
32. Nxe4 {[%clk 0:00:18.3]} 32... Bxe4 {[%clk 0:00:15.4]} 33. b5 {[%clk
0:00:18.7]} 33... Bd5 {[%clk 0:00:14.8]} 34. Ra4 {[%clk 0:00:16.8]} 34... f6
{[%clk 0:00:15]} 35. Rb4 {[%clk 0:00:16.3]} 35... fxe5 {[%clk 0:00:14.7]} 36.
fxe5 {[%clk 0:00:17.2]} 36... g6 {[%clk 0:00:15.2]} 37. b6 {[%clk 0:00:17.5]}
37... g5 {[%clk 0:00:15.4]} 38. b7 {[%clk 0:00:16.7]} 38... h4 {[%clk
0:00:15.2]} 39. gxh4 {[%clk 0:00:16.7]} 39... gxh4 {[%clk 0:00:16.1]} 40. Ne2
{[%clk 0:00:11.9]} 40... Rxb7 {[%clk 0:00:15.1]} 41. Rxh4 {[%clk 0:00:11.9]}
41... Rb3+ {[%clk 0:00:13.8]} 42. Kd2 {[%clk 0:00:11.3]} 42... Rb2+ {[%clk
0:00:13.5]} 43. Ke3 {[%clk 0:00:11.2]} 43... Kf7 {[%clk 0:00:13.4]} 44. Nd4
{[%clk 0:00:11.2]} 44... Ra2 {[%clk 0:00:11.8]} 45. Rh7+ {[%clk 0:00:11.2]}
45... Kg6 {[%clk 0:00:12.1]} 46. Rh4 {[%clk 0:00:09.9]} 46... Kg5 {[%clk
0:00:11.7]} 47. Rh8 {[%clk 0:00:08.3]} 47... Ra3+ {[%clk 0:00:11.9]} 48. Kf2
{[%clk 0:00:08.2]} 48... Kf4 {[%clk 0:00:11.5]} 49. Ne2+ {[%clk 0:00:03.5]}
49... Kxe5 {[%clk 0:00:11.3]} 50. Rh5+ {[%clk 0:00:04.1]} 50... Kd6 {[%clk
0:00:11.3]} 51. Rh6 {[%clk 0:00:04.5]} 51... Rf3+ {[%clk 0:00:11.1]} 52. Ke1
{[%clk 0:00:04.5]} 52... Ra3 {[%clk 0:00:10.8]} 53. Kd2 {[%clk 0:00:04.8]} 53...
Ra2+ {[%clk 0:00:11]} 54. Kd3 {[%clk 0:00:05]} 54... Ra4 {[%clk 0:00:08.1]} 55.
Nc3 {[%clk 0:00:05]} 55... Rg4 {[%clk 0:00:07.3]} 56. Nxd5 {[%clk 0:00:04.7]}
56... Kxd5 {[%clk 0:00:08.2]} 57. Rh8 {[%clk 0:00:04.7]} 57... Rg3+ {[%clk
0:00:08]} 58. Kd2 {[%clk 0:00:04.1]} 58... e5 {[%clk 0:00:04.6]} 59. Rd8+ {[%clk
0:00:04]} 59... Ke4 {[%clk 0:00:04.6]} 60. Ra8 {[%clk 0:00:04.4]} 60... Rg2+
{[%clk 0:00:05.1]} 61. Ke1 {[%clk 0:00:04.6]} 61... Kf3 {[%clk 0:00:04.7]} 62.
Ra3+ {[%clk 0:00:04.6]} 62... Kf4 {[%clk 0:00:05.3]} 63. Ra4+ {[%clk 0:00:05]}
63... e4 {[%clk 0:00:05.8]} 64. Ra8 {[%clk 0:00:05.4]} 64... Kf3 {[%clk
0:00:05.1]} 65. Ra3+ {[%clk 0:00:04.6]} 65... Kf4 {[%clk 0:00:05.2]} 66. Ra8
{[%clk 0:00:04.4]} 66... Rb2 {[%clk 0:00:05.8]} 67. Rf8+ {[%clk 0:00:04.2]}
67... Ke3 {[%clk 0:00:06.3]} 68. Kd1 {[%clk 0:00:04.5]} 68... Rb1+ {[%clk
0:00:06.6]} 69. Kc2 {[%clk 0:00:04.8]} 69... Re1 {[%clk 0:00:07.5]} 70. Kc3
{[%clk 0:00:03.9]} 70... Ke2 {[%clk 0:00:07.5]} 71. Kc2 {[%clk 0:00:04.3]} 71...
e3 {[%clk 0:00:07.8]} 72. Kc3 {[%clk 0:00:04.6]} 72... Rf1 {[%clk 0:00:08.1]}
73. Re8 {[%clk 0:00:04.5]} 73... Rf7 {[%clk 0:00:08.1]} 74. Kc2 {[%clk
0:00:04.2]} 74... Rc7+ {[%clk 0:00:08.1]} 75. Kb2 {[%clk 0:00:04.4]} 75... Kd2
{[%clk 0:00:08.2]} 76. Rd8+ {[%clk 0:00:04.1]} 76... Ke1 {[%clk 0:00:08.6]} 77.
Re8 {[%clk 0:00:04.5]} 77... e2 {[%clk 0:00:09.2]} 78. Rd8 {[%clk 0:00:04.5]}
78... Rf7 {[%clk 0:00:09.3]} 79. Re8 {[%clk 0:00:04.8]} 79... Kf1 {[%clk
0:00:09.6]} 80. Kc2 {[%clk 0:00:05.2]} 80... e1=Q {[%clk 0:00:09.9]} 0-1

[Event "*** Titled Tuesday Blitz"]
[Site "Chess.com"]
[Date "2020.04.21"]
[Round "4"]
[White "volcanoexplorer"]
[Black "Azatic"]
[Result "1/2-1/2"]
[WhiteElo "2497"]
[BlackElo "2655"]
[TimeControl "180+1"]
[EndTime "10:41:51 PDT"]
[Termination "Game drawn by stalemate"]

1. e4 {[%clk 0:03:00.9]} 1... c5 {[%clk 0:03:00.1]} 2. Nf3 {[%clk 0:02:59.7]}
2... e6 {[%clk 0:03:00.1]} 3. d4 {[%clk 0:03:00]} 3... cxd4 {[%clk 0:03:00.4]}
4. Nxd4 {[%clk 0:03:00.9]} 4... a6 {[%clk 0:03:01]} 5. Be2 {[%clk 0:03:01.2]}
5... Nf6 {[%clk 0:03:00.3]} 6. Nc3 {[%clk 0:03:01.1]} 6... Qc7 {[%clk
0:03:00.9]} 7. O-O {[%clk 0:03:01.3]} 7... Be7 {[%clk 0:03:01.4]} 8. Be3 {[%clk
0:03:01.4]} 8... d6 {[%clk 0:03:01.7]} 9. f4 {[%clk 0:03:00.4]} 9... O-O {[%clk
0:02:59.1]} 10. Kh1 {[%clk 0:03:00.4]} 10... Nc6 {[%clk 0:02:59]} 11. Qe1 {[%clk
0:03:00.4]} 11... Nxd4 {[%clk 0:02:59.2]} 12. Bxd4 {[%clk 0:03:01.3]} 12... b5
{[%clk 0:03:00.1]} 13. Bd3 {[%clk 0:02:50.6]} 13... Bb7 {[%clk 0:02:46.5]} 14.
Qg3 {[%clk 0:02:50.3]} 14... Nh5 {[%clk 0:02:21.9]} 15. Qg4 {[%clk 0:02:34.4]}
15... Nf6 {[%clk 0:02:19.9]} 16. Qg3 {[%clk 0:02:33.3]} 16... e5 {[%clk
0:02:20]} 17. fxe5 {[%clk 0:02:31]} 17... Nh5 {[%clk 0:02:20]} 18. Qh3 {[%clk
0:01:31.6]} 18... dxe5 {[%clk 0:02:19.9]} 19. Bxe5 {[%clk 0:01:31.6]} 19... Qxe5
{[%clk 0:02:13.9]} 20. Rf5 {[%clk 0:01:30.8]} 20... Qe6 {[%clk 0:01:47.8]} 21.
Rxh5 {[%clk 0:01:26.3]} 21... Qxh3 {[%clk 0:01:37.6]} 22. Rxh3 {[%clk
0:01:27.2]} 22... g6 {[%clk 0:01:31.6]} 23. Rf1 {[%clk 0:01:10.4]} 23... Rad8
{[%clk 0:01:29.9]} 24. Re3 {[%clk 0:00:47.7]} 24... Bc5 {[%clk 0:01:27.9]} 25.
Re2 {[%clk 0:00:48.2]} 25... Bd4 {[%clk 0:01:27.4]} 26. Nd1 {[%clk 0:00:45.7]}
26... Kg7 {[%clk 0:01:24.4]} 27. a3 {[%clk 0:00:36.6]} 27... h5 {[%clk
0:01:23.6]} 28. b3 {[%clk 0:00:35]} 28... Bc5 {[%clk 0:01:19.1]} 29. a4 {[%clk
0:00:33.7]} 29... bxa4 {[%clk 0:01:18.2]} 30. bxa4 {[%clk 0:00:34.6]} 30... Bd4
{[%clk 0:01:13.1]} 31. Ne3 {[%clk 0:00:24.3]} 31... Bxe3 {[%clk 0:01:04.7]} 32.
Rxe3 {[%clk 0:00:25.2]} 32... Rd4 {[%clk 0:01:05.4]} 33. Rb1 {[%clk 0:00:25.2]}
33... Rxa4 {[%clk 0:01:01.7]} 34. h3 {[%clk 0:00:20.1]} 34... Ba8 {[%clk
0:00:58.7]} 35. e5 {[%clk 0:00:17.8]} 35... Re8 {[%clk 0:00:53.8]} 36. Rbe1
{[%clk 0:00:16.6]} 36... Re6 {[%clk 0:00:50.1]} 37. Kh2 {[%clk 0:00:15]} 37...
a5 {[%clk 0:00:47.8]} 38. Rb1 {[%clk 0:00:14.4]} 38... Rb4 {[%clk 0:00:47]} 39.
Rxb4 {[%clk 0:00:11.8]} 39... axb4 {[%clk 0:00:47.9]} 40. Bc4 {[%clk 0:00:10.3]}
40... Re7 {[%clk 0:00:41.9]} 41. h4 {[%clk 0:00:07.9]} 41... Bc6 {[%clk
0:00:37.4]} 42. Kg3 {[%clk 0:00:07.7]} 42... Bd7 {[%clk 0:00:35.2]} 43. Kf4
{[%clk 0:00:07.6]} 43... Bf5 {[%clk 0:00:35.5]} 44. Bb3 {[%clk 0:00:07.5]} 44...
Rc7 {[%clk 0:00:34.1]} 45. Re2 {[%clk 0:00:07.8]} 45... Rc3 {[%clk 0:00:32.2]}
46. Rd2 {[%clk 0:00:06.2]} 46... Kf8 {[%clk 0:00:25]} 47. Rd8+ {[%clk
0:00:05.9]} 47... Ke7 {[%clk 0:00:24.4]} 48. Rd2 {[%clk 0:00:06.7]} 48... Be6
{[%clk 0:00:22.5]} 49. Ba4 {[%clk 0:00:03.9]} 49... Rc4+ {[%clk 0:00:21.2]} 50.
Kg3 {[%clk 0:00:04.1]} 50... Rg4+ {[%clk 0:00:21.5]} 51. Kf3 {[%clk 0:00:04.7]}
51... Rxh4 {[%clk 0:00:20.7]} 52. g3 {[%clk 0:00:05.4]} 52... Rc4 {[%clk
0:00:20.1]} 53. Rd6 {[%clk 0:00:04.7]} 53... Rc5 {[%clk 0:00:18.6]} 54. Rb6
{[%clk 0:00:04]} 54... Rc3+ {[%clk 0:00:17]} 55. Kf2 {[%clk 0:00:04]} 55... Rc4
{[%clk 0:00:15.7]} 56. Rb7+ {[%clk 0:00:04.6]} 56... Kf8 {[%clk 0:00:15.6]} 57.
Bb3 {[%clk 0:00:05.1]} 57... Re4 {[%clk 0:00:15.9]} 58. Bxe6 {[%clk 0:00:02.8]}
58... fxe6 {[%clk 0:00:16.8]} 59. Rb6 {[%clk 0:00:03.4]} 59... Kf7 {[%clk
0:00:16.7]} 60. Kf3 {[%clk 0:00:03.3]} 60... Rc4 {[%clk 0:00:14.4]} 61. Rb7+
{[%clk 0:00:03.4]} 61... Kf8 {[%clk 0:00:14.6]} 62. Rb6 {[%clk 0:00:04]} 62...
Rxc2 {[%clk 0:00:14.3]} 63. Rxb4 {[%clk 0:00:03.3]} 63... Rc7 {[%clk 0:00:12]}
64. Kf4 {[%clk 0:00:03.5]} 64... Rc5 {[%clk 0:00:10.8]} 65. Kg5 {[%clk
0:00:03.6]} 65... Rxe5+ {[%clk 0:00:10.3]} 66. Kxg6 {[%clk 0:00:04.2]} 66... Rf5
{[%clk 0:00:10.8]} 67. Rb7 {[%clk 0:00:04.1]} 67... Ke8 {[%clk 0:00:11.1]} 68.
Rh7 {[%clk 0:00:03.8]} 68... Rf3 {[%clk 0:00:10.2]} 69. Rxh5 {[%clk 0:00:04.1]}
69... Rxg3+ {[%clk 0:00:10.2]} 70. Kf6 {[%clk 0:00:04.9]} 70... Re3 {[%clk
0:00:10.8]} 71. Re5 {[%clk 0:00:04.6]} 71... Rxe5 {[%clk 0:00:08.9]} 72. Kxe5
{[%clk 0:00:05.5]} 72... Ke7 {[%clk 0:00:09.8]} 73. Ke4 {[%clk 0:00:06.1]} 73...
Kd6 {[%clk 0:00:10.7]} 74. Kd4 {[%clk 0:00:06.7]} 74... e5+ {[%clk 0:00:11.6]}
75. Ke4 {[%clk 0:00:07.4]} 75... Ke6 {[%clk 0:00:12.5]} 76. Ke3 {[%clk 0:00:08]}
76... Kf6 {[%clk 0:00:13.3]} 77. Ke4 {[%clk 0:00:08]} 77... Ke6 {[%clk 0:00:14]}
78. Ke3 {[%clk 0:00:08.7]} 78... Kd5 {[%clk 0:00:14.9]} 79. Kd3 {[%clk
0:00:09.2]} 79... e4+ {[%clk 0:00:15.8]} 80. Ke3 {[%clk 0:00:09.9]} 80... Ke5
{[%clk 0:00:16.7]} 81. Ke2 {[%clk 0:00:10.5]} 81... Kf4 {[%clk 0:00:17.6]} 82.
Kf2 {[%clk 0:00:10.8]} 82... e3+ {[%clk 0:00:18.5]} 83. Ke2 {[%clk 0:00:11.4]}
83... Ke4 {[%clk 0:00:19.4]} 84. Ke1 {[%clk 0:00:11]} 84... Kd3 {[%clk
0:00:20.3]} 85. Kd1 {[%clk 0:00:11.5]} 85... Ke4 {[%clk 0:00:20.7]} 86. Ke2
{[%clk 0:00:11.9]} 86... Kd4 {[%clk 0:00:21.6]} 87. Ke1 {[%clk 0:00:11.7]} 87...
Kd3 {[%clk 0:00:22.5]} 88. Kd1 {[%clk 0:00:12.2]} 88... e2+ {[%clk 0:00:23.2]}
89. Ke1 {[%clk 0:00:12.8]} 89... Ke3 {[%clk 0:00:24.1]} 1/2-1/2

[Event "*** Titled Tuesday Blitz"]
[Site "Chess.com"]
[Date "2020.04.21"]
[Round "4"]
[White "Azatnew"]
[Black "Chess_Boxer123"]
[Result "1/2-1/2"]
[WhiteElo "2773"]
[BlackElo "2545"]
[TimeControl "180+1"]
[EndTime "10:41:54 PDT"]
[Termination "Game drawn - insufficient material"]

1. Nf3 {[%clk 0:03:00.9]} 1... d5 {[%clk 0:02:58.5]} 2. g3 {[%clk 0:03:00.9]}
2... Nf6 {[%clk 0:02:57.8]} 3. Bg2 {[%clk 0:03:01.4]} 3... Bf5 {[%clk
0:02:58.4]} 4. O-O {[%clk 0:03:02.3]} 4... e6 {[%clk 0:02:59]} 5. d4 {[%clk
0:03:02.9]} 5... h6 {[%clk 0:02:59.4]} 6. c4 {[%clk 0:03:03.3]} 6... c6 {[%clk
0:03:00]} 7. Nc3 {[%clk 0:03:03.8]} 7... Nbd7 {[%clk 0:02:57.1]} 8. Qb3 {[%clk
0:03:03.8]} 8... Qb6 {[%clk 0:02:55.4]} 9. c5 {[%clk 0:03:04.3]} 9... Qxb3
{[%clk 0:02:55.6]} 10. axb3 {[%clk 0:03:05.2]} 10... Be7 {[%clk 0:02:54.5]} 11.
b4 {[%clk 0:03:05.6]} 11... a6 {[%clk 0:02:49.7]} 12. Nd2 {[%clk 0:03:05.7]}
12... O-O {[%clk 0:02:49.1]} 13. Nb3 {[%clk 0:03:04.9]} 13... e5 {[%clk
0:02:46.6]} 14. dxe5 {[%clk 0:02:59.5]} 14... Nxe5 {[%clk 0:02:47.5]} 15. Na5
{[%clk 0:02:59.8]} 15... Ra7 {[%clk 0:02:45.9]} 16. Bf4 {[%clk 0:02:57.8]} 16...
Ned7 {[%clk 0:02:37]} 17. Rfd1 {[%clk 0:02:56.7]} 17... Re8 {[%clk 0:02:25]} 18.
Bc7 {[%clk 0:02:30.1]} 18... Bd8 {[%clk 0:02:19.3]} 19. Bxd8 {[%clk 0:02:29.6]}
19... Rxd8 {[%clk 0:02:20]} 20. Rd4 {[%clk 0:02:26.7]} 20... Rc8 {[%clk
0:02:03.8]} 21. Na4 {[%clk 0:02:18.4]} 21... Be4 {[%clk 0:01:42]} 22. Bxe4
{[%clk 0:02:16.8]} 22... Nxe4 {[%clk 0:01:41.5]} 23. Rad1 {[%clk 0:02:17.3]}
23... Ndf6 {[%clk 0:01:30.6]} 24. h4 {[%clk 0:02:10.4]} 24... Ne8 {[%clk
0:01:22.1]} 25. Kg2 {[%clk 0:02:09]} 25... Nc7 {[%clk 0:01:21.3]} 26. f3 {[%clk
0:01:59.6]} 26... Nf6 {[%clk 0:01:20.2]} 27. e4 {[%clk 0:01:52.1]} 27... Ne6
{[%clk 0:01:19.8]} 28. R4d2 {[%clk 0:01:50.4]} 28... dxe4 {[%clk 0:01:20]} 29.
fxe4 {[%clk 0:01:50.3]} 29... Nxe4 {[%clk 0:01:20.6]} 30. Rd7 {[%clk 0:01:50.6]}
30... Nf6 {[%clk 0:01:16.6]} 31. Nb6 {[%clk 0:01:50.5]} 31... Re8 {[%clk
0:01:10]} 32. Rxb7 {[%clk 0:01:40.9]} 32... Rxb7 {[%clk 0:01:09.8]} 33. Nxb7
{[%clk 0:01:41.8]} 33... Nc7 {[%clk 0:01:09.1]} 34. Rd8 {[%clk 0:01:33.7]} 34...
Kf8 {[%clk 0:00:46.4]} 35. Rxe8+ {[%clk 0:01:31.9]} 35... Kxe8 {[%clk
0:00:47.3]} 36. Na5 {[%clk 0:01:32.3]} 36... Nfd5 {[%clk 0:00:24.2]} 37. Nxc6
{[%clk 0:01:29.8]} 37... g5 {[%clk 0:00:22.6]} 38. Kf3 {[%clk 0:01:26]} 38... f5
{[%clk 0:00:22.5]} 39. Nc4 {[%clk 0:01:13.5]} 39... Kd7 {[%clk 0:00:20.8]} 40.
N4e5+ {[%clk 0:01:13.2]} 40... Ke6 {[%clk 0:00:21.4]} 41. Nd3 {[%clk 0:01:09.3]}
41... g4+ {[%clk 0:00:20.5]} 42. Kf2 {[%clk 0:01:09.2]} 42... Kd7 {[%clk
0:00:20.8]} 43. Nd4 {[%clk 0:01:09.4]} 43... Nb5 {[%clk 0:00:19.2]} 44. Nxf5
{[%clk 0:01:07.9]} 44... h5 {[%clk 0:00:18.5]} 45. Nd4 {[%clk 0:01:07]} 45...
Nxd4 {[%clk 0:00:18.4]} 46. Ne5+ {[%clk 0:00:48.4]} 46... Ke6 {[%clk 0:00:17.3]}
47. Ng6 {[%clk 0:00:40.6]} 47... Nxb4 {[%clk 0:00:16.4]} 48. Nf4+ {[%clk
0:00:40.2]} 48... Kf5 {[%clk 0:00:16.5]} 49. Nxh5 {[%clk 0:00:40.5]} 49... Ne6
{[%clk 0:00:14.7]} 50. Ke3 {[%clk 0:00:36.3]} 50... Nd5+ {[%clk 0:00:13.6]} 51.
Kd3 {[%clk 0:00:34.5]} 51... Kg6 {[%clk 0:00:14]} 52. Ke4 {[%clk 0:00:32.7]}
52... Nb4 {[%clk 0:00:08.5]} 53. Ke5 {[%clk 0:00:20.8]} 53... Nxc5 {[%clk
0:00:07]} 54. Nf4+ {[%clk 0:00:21.3]} 54... Kh6 {[%clk 0:00:07.6]} 55. Kf5
{[%clk 0:00:21.8]} 55... Ncd3 {[%clk 0:00:06.1]} 56. Ne6 {[%clk 0:00:17.6]}
56... Nxb2 {[%clk 0:00:06]} 57. Kxg4 {[%clk 0:00:18.2]} 57... a5 {[%clk
0:00:06.5]} 58. Nc5 {[%clk 0:00:17.4]} 58... N4d3 {[%clk 0:00:07]} 59. Nb3
{[%clk 0:00:14.4]} 59... a4 {[%clk 0:00:06.9]} 60. Na1 {[%clk 0:00:14.9]} 60...
a3 {[%clk 0:00:06.6]} 61. Kf5 {[%clk 0:00:15.2]} 61... a2 {[%clk 0:00:06.1]} 62.
g4 {[%clk 0:00:15.7]} 62... Kg7 {[%clk 0:00:05.2]} 63. g5 {[%clk 0:00:16.1]}
63... Nc4 {[%clk 0:00:05.7]} 64. h5 {[%clk 0:00:16.5]} 64... Nc5 {[%clk
0:00:05.4]} 65. h6+ {[%clk 0:00:15.9]} 65... Kh7 {[%clk 0:00:05.9]} 66. Kf6
{[%clk 0:00:16.4]} 66... Ne4+ {[%clk 0:00:06.3]} 67. Kf5 {[%clk 0:00:16.9]}
67... Ncd6+ {[%clk 0:00:06.1]} 68. Kf4 {[%clk 0:00:17.3]} 68... Kg6 {[%clk
0:00:06.7]} 69. Ke5 {[%clk 0:00:16.2]} 69... Kxg5 {[%clk 0:00:04.3]} 70. h7
{[%clk 0:00:16.3]} 70... Kg6 {[%clk 0:00:04.2]} 71. h8=Q {[%clk 0:00:15.6]}
71... Nf7+ {[%clk 0:00:03.9]} 72. Kxe4 {[%clk 0:00:16.2]} 72... Nxh8 {[%clk
0:00:04.8]} 73. Kd3 {[%clk 0:00:16.9]} 73... Nf7 {[%clk 0:00:05.3]} 74. Kc2
{[%clk 0:00:17.8]} 74... Nd6 {[%clk 0:00:05.9]} 75. Kb2 {[%clk 0:00:18.7]} 75...
Kf6 {[%clk 0:00:06.8]} 76. Kxa2 {[%clk 0:00:19.6]} 1/2-1/2